bitfinex/quotes_ETHUSD_20230905
["timestamp","ask_amount","ask_price","bid_price","bid_amount"]
[1693927766865,0.95917375,1634.6,1634.5,41.42652094]
[1693927767779,0.95917375,1634.6,1634.5,28.48550668]
[1693927767975,0.95917375,1634.6,1634.5,18.96714205]
[1693927768183,0.95917375,1634.6,1634.5,18.35421]
[1693927770184,0.95917375,1634.6,1634.5,12.23614]
[1693927770645,0.95917375,1634.6,1634.5,18.35421]
[1693927771380,0.95917375,1634.6,1634.5,17.71614432]
[1693927771579,2.23785617,1634.7,1634.5,17.71614432]
[1693927771768,1.59516422,1634.6,1634.5,17.71614432]
[1693927772346,1.06344281,1634.6,1634.5,17.71614432]
[1693927772760,1.06344281,1634.6,1634.5,12.23614]
[1693927773078,1.59516422,1634.6,1634.5,20.21321]
[1693927773759,1.06344281,1634.6,1634.5,20.21321]
[1693927773963,2.55433797,1634.7,1634.5,20.21321]
[1693927774277,0.95917375,1634.6,1634.5,22.846358]
[1693927774484,0.95917375,1634.6,1634.5,23.326358]
[1693927776305,0.95917375,1634.6,1634.5,4.972148]
[1693927776602,0.95917375,1634.6,1634.5,14.52514]
[1693927776808,0.95917375,1634.6,1634.5,20.64321]
[1693927779323,1.59909286,1634.7,1634.5,20.64321]
[1693927780718,4.25750916,1634.7,1634.5,20.64321]
[1693927780916,0.63991911,1634.7,1634.5,18.83421]
[1693927782510,0.63991911,1634.7,1634.5,20.69321]
[1693927784011,0.63991911,1634.7,1634.5,18.83421]
[1693927786313,2.23499511,1634.6,1634.5,18.83421]
[1693927787019,0.63991911,1634.6,1634.5,18.83421]
[1693927787913,0.63991911,1634.6,1634.5,18.35421]
[1693927788100,0.63991911,1634.6,1634.5,12.23614]
[1693927789119,0.63991911,1634.6,1634.5,18.35421]
[1693927789612,0.95917375,1634.7,1634.5,18.35421]
[1693927792011,0.95917375,1634.7,1634.5,12.23614]
[1693927792217,0.95917375,1634.7,1634.5,18.35421]
[1693927795315,0.95917375,1634.7,1634.2,3.48680229]
[1693927795616,1.27868242,1634.8,1634.5,18.35406]
[1693927795914,2.1691,1634.7,1634.5,18.35406]
[1693927796082,1.27868242,1634.8,1634.5,18.35406]
[1693927796283,1.27868242,1634.8,1634.5,6.11792]
[1693927796516,1.27868242,1634.8,1634.4,6.11843]
[1693927796517,3.06701426,1634.7,1634.4,6.11843]
[1693927796683,0.30670143,1634.6,1634.4,18.35514]
[1693927797017,1.60258754,1634.5,1634.4,18.35514]
[1693927797217,1.60258754,1634.5,1634.4,12.23669]
[1693927797419,5.54359507,1634.5,1634.4,12.23669]
[1693927798122,6.60717007,1634.5,1634.4,12.23669]
[1693927798285,7.67074507,1634.5,1634.4,12.23669]
[1693927798822,7.67074507,1634.5,1634.4,6.11826]
[1693927799005,8.43781958,1634.5,1634.4,6.11826]
[1693927800018,8.43781958,1634.5,1634.3,12.23709]
[1693927800334,8.43781958,1634.5,1634.4,6.11845]
[1693927800533,8.43781958,1634.5,1634.3,12.23713]
[1693927800735,8.43781958,1634.5,1634.4,6.11845]
[1693927800899,7.67074507,1634.5,1634.4,18.35535]
[1693927801727,3.94823257,1634.5,1634.4,21.30728205]
[1693927802635,3.94823257,1634.5,1634.4,19.44828205]
[1693927803915,0.64095755,1634.6,1634.4,18.35535]
[1693927804115,3.2995179,1634.6,1634.4,18.35535]
[1693927804433,1.70438213,1634.5,1634.4,18.35535]
[1693927804905,2.23612162,1634.5,1634.4,18.35535]
[1693927805122,2.23612162,1634.5,1634.3,6.11847]
[1693927805123,3.19755795,1634.5,1634.3,6.11847]
[1693927805353,4.81528779,1634.5,1634.3,6.11847]
[1693927805527,4.17433024,1634.5,1634.3,6.11847]
[1693927805728,2.57916617,1634.5,1634.3,6.11847]
[1693927806531,2.57916617,1634.5,1634.2,12.23798]
[1693927807029,5.64618043,1634.5,1634.2,6.11899]
[1693927807259,0.56461804,1634.4,1634.2,12.23819]
[1693927807460,0.56461804,1634.4,1634.2,6.11899]
[1693927807963,0.56461804,1634.4,1634.2,12.23819]
[1693927808159,0.56461804,1634.4,1634.2,6.11899]
[1693927808461,0.56461804,1634.4,1634.2,12.23819]
[1693927808780,0.56461804,1634.4,1634.2,6.11899]
[1693927810560,0.56461804,1634.4,1634.2,18.35739]
[1693927810561,2.65858865,1634.3,1634.2,18.35739]
[1693927810763,2.65858865,1634.3,1634.2,20.69639]
[1693927811061,4.26166546,1634.3,1634.2,23.69639]
[1693927811853,4.26166546,1634.3,1634.2,30.09039]
[1693927812054,2.12722214,1634.4,1634.2,30.09039]
[1693927812265,2.585,1634.8,1634.3,11.742039]
[1693927812428,2.2874,1635.0,1634.6,1.859]
[1693927812647,2.5311,1635.1,1634.7,18.96468205]
[1693927814874,2.5311,1635.1,1634.7,18.35175]
[1693927815038,3.01295,1635.1,1634.7,18.35175]
[1693927816248,2.5311,1635.1,1634.7,20.21075]
[1693927816445,2.5311,1635.1,1634.9,1.859]
[1693927816669,2.5311,1635.1,1635.0,6.1162]
[1693927816869,2.5311,1635.1,1634.9,6.11647]
[1693927817269,2.5311,1635.1,1634.9,12.23305]
[1693927817479,4.48029777,1635.0,1634.9,12.23305]
[1693927817680,4.48029777,1635.0,1634.9,18.34963]
[1693927817989,5.54352282,1635.0,1634.9,18.34963]
[1693927818169,6.38754618,1635.0,1634.9,17.71169656]
[1693927818382,3.94037613,1635.0,1634.9,20.71169656]
[1693927818684,3.61975794,1635.0,1634.9,20.71169656]
[1693927818985,3.61975794,1635.0,1634.9,22.24356313]
[1693927819158,3.61975794,1635.0,1634.9,22.72356313]
[1693927819363,3.61975794,1635.0,1634.9,24.58256313]
[1693927819587,2.02492036,1635.0,1634.9,24.58256313]
[1693927820685,0.96169531,1635.0,1634.9,24.58256313]
[1693927820885,3.40876361,1635.1,1634.9,24.58256313]
[1693927820886,3.40876361,1635.1,1634.9,37.04357739]
[1693927821052,3.28221987,1635.8,1635.2,6.394]
[1693927821261,2.5829,1635.7,1635.5,1.859]
[1693927821453,2.5829,1635.7,1635.5,26.31632]
[1693927821772,2.5829,1635.7,1635.5,27.94164862]
[1693927822094,5.55991987,1635.8,1635.5,27.94164862]
[1693927822477,3.28221987,1635.8,1635.5,30.41358067]
[1693927823185,3.28221987,1635.8,1635.5,28.55458067]
[1693927823380,3.28221987,1635.8,1635.5,31.55458067]
[1693927823572,4.95e-06,1635.6,1635.5,51.98892493]
[1693927823812,3.28221987,1635.8,1635.7,9.394]
[1693927823964,0.101,1635.8,1635.7,46.85328205]
[1693927824552,0.74056466,1635.8,1635.7,46.85328205]
[1693927824760,1.59891166,1636.0,1635.9,9.394]
[1693927824961,2.01969399,1636.1,1636.0,1.859]
[1693927825178,2.01969399,1636.1,1636.0,20.19638]
[1693927825773,2.01969399,1636.1,1636.0,18.33738]
[1693927827404,2.01969399,1636.1,1635.9,6.11263]
[1693927827705,2.01969399,1636.1,1635.9,12.22547]
[1693927828067,2.01969399,1636.1,1635.9,20.19731]
[1693927828295,2.01969399,1636.1,1635.9,22.828341]
[1693927828499,2.01969399,1636.1,1635.9,20.969341]
[1693927828998,2.01969399,1636.1,1635.9,17.20485712]
[1693927829201,0.101,1636.1,1635.9,17.20485712]
[1693927829901,0.101,1636.1,1635.9,19.06385712]
[1693927830077,0.101,1636.1,1636.0,1.859]
[1693927830278,0.101,1636.1,1636.0,26.59038]
[1693927830494,0.101,1636.1,1636.0,20.67638]
[1693927831972,0.101,1636.1,1636.0,36.79577205]
[1693927832179,0.101,1636.1,1636.0,39.86278631]
[1693927832904,0.101,1636.1,1636.0,36.79577205]
[1693927833076,0.101,1636.1,1636.0,24.53386105]
[1693927834288,0.101,1636.1,1636.0,18.581929]
[1693927834507,0.101,1636.1,1636.0,18.33738]
[1693927836734,3.16801426,1636.1,1636.0,12.22492]
[1693927837018,3.16801426,1636.1,1635.8,1.859]
[1693927837019,3.16801426,1636.1,1635.9,6.11278]
[1693927837393,3.16801426,1636.1,1635.8,6.11296]
[1693927837718,0.31680143,1636.0,1635.8,6.11295]
[1693927837883,3.06701426,1635.9,1635.2,1.859]
[1693927838088,3.06701426,1635.9,1635.4,18.34396]
[1693927838304,2.4512,1635.8,1635.4,18.34396]
[1693927838518,5.51821426,1635.8,1635.4,18.34396]
[1693927838722,3.61883569,1635.7,1635.4,6.11454]
[1693927839027,3.61883569,1635.7,1635.4,12.22936]
[1693927839883,3.61883569,1635.7,1635.4,6.11465]
[1693927840480,3.61883569,1635.7,1635.4,12.22936]
[1693927841217,3.61883569,1635.7,1635.4,6.11465]
[1693927841521,0.36188357,1635.6,1635.2,6.1154]
[1693927841820,3.06701426,1635.5,1635.2,12.23085]
[1693927845783,7.97373,1635.4,1635.0,6.11597]
[1693927845987,4.92601426,1635.3,1634.7,6.11723]
[1693927846187,6.11587,1635.1,1634.7,6.11727]
[1693927846387,3.06701426,1635.0,1634.7,6.11727]
[1693927846633,3.06701426,1635.0,1634.7,12.2346]
[1693927847042,3.06701426,1635.0,1634.7,18.35193]
[1693927848889,3.06701426,1635.0,1634.7,20.798873]
[1693927849213,2.2327,1635.1,1634.7,21.41180505]
[1693927849414,5.29971426,1635.1,1634.7,21.41180505]
[1693927849614,5.29971426,1635.1,1634.7,18.96486205]
[1693927849815,3.06701426,1635.0,1634.7,12.2346]
[1693927851588,3.06701426,1635.0,1634.6,6.1175]
[1693927851589,9.18321426,1635.0,1634.6,6.1175]
[1693927851812,11.04221426,1635.0,1634.6,6.1175]
[1693927852125,17.15841426,1635.0,1634.6,6.11758]
[1693927852432,6.11695,1634.8,1634.2,6.21915]
[1693927852607,9.18437426,1634.7,1634.4,6.11837]
[1693927853192,3.06701426,1634.7,1634.4,6.11845]
[1693927853713,9.18443426,1634.7,1634.3,12.23725]
[1693927853925,17.16085426,1634.7,1634.3,6.1188]
[1693927854129,1.71608543,1634.6,1634.3,12.23762]
[1693927854297,3.06701426,1634.5,1634.3,6.1188]
[1693927855398,3.06701426,1634.5,1634.3,12.23762]
[1693927855729,3.06701426,1634.5,1634.3,6.1188]
[1693927856330,17.16224426,1634.5,1634.2,0.1]
[1693927856504,4.78323869,1634.4,1634.2,0.1]
[1693927856704,17.02013869,1634.4,1634.2,0.1]
[1693927858513,1.859,1634.3,1634.2,0.1]
[1693927858831,11.04483426,1634.3,1634.2,0.1]
[1693927859009,9.18583426,1634.3,1634.2,0.1]
[1693927859220,4.76906513,1634.3,1634.2,0.1]
[1693927860131,10.88788513,1634.3,1634.2,0.1]
[1693927860433,17.00670513,1634.3,1634.2,0.1]
[1693927860613,10.88788513,1634.3,1634.2,0.1]
[1693927860801,2.3331,1634.5,1634.2,18.4576]
[1693927861135,3.06701426,1634.4,1634.2,6.2192]
[1693927862437,2.6067,1634.6,1634.2,18.4576]
[1693927862648,2.6067,1634.6,1634.2,19.07053205]
[1693927862837,3.96679724,1634.8,1634.3,4.37898526]
[1693927863038,3.96679724,1634.8,1634.4,18.35478]
[1693927863241,3.06701426,1634.7,1634.4,6.11826]
[1693927863536,3.06701426,1634.7,1634.4,12.23671]
[1693927864205,6.19439724,1634.8,1634.4,18.35516]
[1693927864547,1.59009724,1634.8,1634.6,18.3531]
[1693927865443,1.59009724,1634.8,1634.6,6.1177]
[1693927865623,1.59009724,1634.8,1634.6,12.2354]
[1693927865815,1.59009724,1634.8,1634.6,18.3531]
[1693927866017,1.59009724,1634.8,1634.6,20.2121]
[1693927866236,0.6360684,1634.8,1634.7,2.02121]
[1693927866537,2.3767,1635.0,1634.7,20.3732]
[1693927867408,2.3767,1635.0,1634.7,18.35199]
[1693927869179,2.1301,1635.3,1634.7,18.35199]
[1693927869402,3.06701426,1635.2,1634.7,20.26016285]
[1693927869555,3.06701426,1635.2,1634.7,19.6472308]
[1693927871013,2.562,1635.3,1634.7,20.26016285]
[1693927871165,5.62901426,1635.3,1634.9,24.46568]
[1693927871367,5.62901426,1635.3,1634.9,18.34917]
[1693927872070,2.562,1635.3,1634.9,18.34917]
[1693927872265,1.59009724,1635.4,1634.9,20.20817]
[1693927872505,1.59009724,1635.4,1635.0,3.43656865]
[1693927872721,1.59009724,1635.4,1635.1,18.34725]
[1693927873814,2.484,1635.5,1635.1,18.34725]
[1693927874010,5.55101426,1635.5,1635.1,18.34725]
[1693927874982,2.131,1635.7,1635.1,22.23226628]
[1693927875177,4.7472,1635.7,1635.3,18.34467]
[1693927876772,3.06701426,1635.6,1635.3,12.22978]
[1693927878605,3.06701426,1635.6,1635.3,18.34486]
[1693927879101,3.84843569,1635.6,1635.3,12.22978]
[1693927879300,16.07635569,1635.6,1635.1,6.11575]
[1693927879504,9.96239569,1635.6,1635.2,12.23089]
[1693927879693,5.43853293,1635.6,1635.2,12.23089]
[1693927880016,2.24300435,1635.5,1635.2,12.23089]
[1693927880225,5.31001861,1635.5,1635.2,12.23089]
[1693927880628,5.31001861,1635.5,1635.2,18.34634]
[1693927880834,1.69915106,1635.5,1635.2,18.34634]
[1693927881530,3.25949694,1635.5,1635.4,1.859]
[1693927881734,1.56034588,1635.5,1635.4,20.20313]
[1693927882230,3.57022884,1635.7,1635.4,20.20313]
[1693927882402,3.57022884,1635.7,1635.4,18.34413]
[1693927883237,0.95402884,1635.7,1635.4,28.338153]
[1693927884935,10.1348331,1635.7,1635.3,6.11484]
[1693927885118,10.1348231,1635.7,1635.3,6.11484]
[1693927885514,4.0210431,1635.7,1635.3,6.11484]
[1693927885715,4.0210431,1635.7,1635.3,12.22992]
[1693927885912,4.0210431,1635.7,1635.3,18.345]
[1693927886432,4.42314741,1635.7,1635.3,6.11484]
[1693927886824,10.53683741,1635.7,1635.3,6.11484]
[1693927887033,10.53683741,1635.7,1635.3,12.22992]
[1693927890317,10.53683741,1635.7,1635.1,12.2314]
[1693927890318,3.06701426,1635.6,1635.1,12.2314]
[1693927890520,6.42122143,1635.5,1635.1,12.2314]
[1693927890719,9.48823569,1635.5,1635.1,12.2314]
[1693927891126,0.30670143,1635.5,1635.1,18.34723]
[1693927891332,2.4189,1635.6,1635.1,18.34723]
[1693927891657,4.2176829,1635.5,1635.1,18.34723]
[1693927891825,3.15465719,1635.5,1635.1,18.34723]
[1693927892224,0.63801316,1635.5,1635.1,18.34723]
[1693927892524,3.26371103,1635.5,1635.1,18.34723]
[1693927892742,3.26371103,1635.5,1635.1,20.979456]
[1693927892947,3.26371103,1635.5,1635.1,18.34723]
[1693927893347,0.63801316,1635.5,1635.1,18.34723]
[1693927893544,3.26380047,1635.5,1635.1,18.34723]
[1693927893748,1.70102214,1635.5,1635.1,18.34723]
[1693927894053,4.21785096,1635.5,1635.1,18.34723]
[1693927894227,0.63801316,1635.5,1635.1,18.34723]
[1693927894421,3.2636173,1635.5,1635.1,18.34723]
[1693927894625,1.70103869,1635.5,1635.1,22.226853]
[1693927894822,0.63801316,1635.5,1635.1,22.226853]
[1693927895024,0.63801316,1635.5,1635.2,1.859]
[1693927895230,0.63801316,1635.5,1635.3,18.34524]
[1693927896225,1.592042,1635.6,1635.3,18.34524]
[1693927896654,4.21746854,1635.6,1635.3,18.34524]
[1693927896856,7.96857591,1635.6,1635.3,12.23016]
[1693927897057,5.34314937,1635.6,1635.3,18.34524]
[1693927897246,2.27613511,1635.6,1635.3,18.34524]
[1693927897858,5.34314937,1635.6,1635.3,6.11508]
[1693927898050,0.53431494,1635.5,1635.3,6.11508]
[1693927898826,3.7978317,1635.5,1635.3,6.11508]
[1693927899329,2.73480936,1635.5,1635.3,6.11508]
[1693927899979,10.35374236,1635.5,1635.2,6.11527]
[1693927900549,15.29671426,1635.4,1635.0,6.11585]
[1693927900748,10.2170985,1635.4,1635.0,12.23185]
[1693927900987,12.6100985,1635.4,1635.0,12.23185]
[1693927901357,24.8395185,1635.4,1634.9,6.11642]
[1693927901581,18.7248085,1635.4,1634.9,6.11642]
[1693927901781,7.98762085,1635.3,1634.9,12.233]
[1693927901985,3.06701426,1635.2,1634.9,12.233]
[1693927902560,1.87248085,1635.3,1634.9,18.34958]
[1693927902768,4.6633,1635.4,1635.0,1.859]
[1693927902973,4.6633,1635.4,1635.1,18.34725]
[1693927903283,2.2703,1635.4,1635.1,18.34725]
[1693927903582,5.33731426,1635.4,1635.1,6.11575]
[1693927903771,3.06701426,1635.3,1635.1,6.11575]
[1693927903977,0.30670143,1635.2,1635.0,6.11619]
[1693927904161,3.37371569,1635.2,1635.0,6.11619]
[1693927904588,3.06701426,1635.1,1634.9,12.23282]
[1693927904899,3.70502742,1635.1,1634.9,12.23282]
[1693927905069,4.81314919,1635.1,1634.9,12.23282]
[1693927906178,4.17513603,1635.1,1634.9,12.23282]
[1693927907988,10.29104603,1635.1,1634.7,6.11724]
[1693927908287,16.40695603,1635.1,1634.7,6.11724]
[1693927908485,6.63793603,1635.1,1634.7,6.11724]
[1693927908789,0.6637936,1635.0,1634.7,12.23457]
[1693927909094,3.73080786,1635.0,1634.7,12.23457]
[1693927909757,0.64014075,1634.8,1634.7,12.23457]
[1693927912704,0.64014075,1634.8,1634.7,18.3519]
[1693927914399,0.64014075,1634.8,1634.7,20.2109]
[1693927914587,0.64014075,1634.8,1634.7,23.45666105]
[1693927915081,0.64014075,1634.9,1634.7,23.45666105]
[1693927915274,0.64014075,1634.9,1634.8,1.859]
[1693927915475,4.23232279,1635.0,1634.8,20.20985]
[1693927915673,3.16899978,1635.0,1634.8,20.20985]
[1693927915994,3.16899978,1635.0,1634.8,21.18060593]
[1693927917689,3.16899978,1635.0,1634.8,20.20985]
[1693927919284,3.16899978,1635.0,1634.8,18.35085]
[1693927920997,2.20878865,1635.0,1634.8,18.35085]
[1693927921199,2.20878865,1635.0,1634.8,26.3268]
[1693927921200,3.2719914,1635.0,1634.8,26.3268]
[1693927921709,2.20878865,1635.0,1634.9,2.63268]
[1693927921910,0.64014075,1635.0,1634.9,22.84142]
[1693927922216,0.64014075,1635.0,1634.9,25.84142]
[1693927922603,0.64014075,1635.0,1634.9,18.34974]
[1693927925818,0.64014075,1635.0,1634.9,20.20874]
[1693927925981,0.64014075,1635.0,1634.9,21.30167205]
[1693927926175,0.64014075,1635.0,1634.9,24.30167205]
[1693927926383,0.64014075,1635.0,1634.9,33.41825205]
[1693927927783,0.96021113,1635.4,1634.9,33.41825205]
[1693927927784,0.64014075,1635.3,1634.9,33.41825205]
[1693927927979,0.64014075,1635.3,1635.1,1.859]
[1693927928288,0.64014075,1635.3,1635.2,18.34635]
[1693927928683,0.64014075,1635.3,1635.2,24.29828205]
[1693927929316,1.60117257,1635.5,1635.2,39.80773205]
[1693927929518,3.66874413,1635.7,1635.4,1.859]
[1693927929719,3.66874413,1635.7,1635.6,1.859]
[1693927929884,1.92140708,1635.7,1635.6,20.20088]
[1693927930215,1.92140708,1635.7,1635.6,20.68088]
[1693927930427,1.92140708,1635.7,1635.6,18.82188]
[1693927930596,1.92140708,1635.7,1635.6,18.34188]
[1693927931486,4.23532087,1635.9,1635.6,18.34188]
[1693927931689,1.96912087,1635.9,1635.7,1.859]
[1693927931886,1.96912087,1635.9,1635.8,18.33963]
[1693927932920,1.06267931,1636.0,1635.8,18.33963]
[1693927933105,1.45713775,1635.9,1635.8,18.33963]
[1693927933282,1.45713775,1635.9,1635.8,26.31184]
[1693927933490,1.45713775,1635.9,1635.8,37.95523693]
[1693927933716,0.101,1636.1,1635.8,37.95523693]
[1693927934016,0.101,1636.1,1635.9,0.48]
[1693927934195,0.101,1636.1,1636.0,24.44984]
[1693927935588,0.101,1636.1,1636.0,18.33738]
[1693927936487,0.101,1636.1,1636.0,26.283578]
[1693927936685,0.101,1636.1,1636.0,26.763578]
[1693927937190,0.101,1636.1,1636.0,28.622578]
[1693927937891,0.101,1636.1,1636.0,40.20697005]
[1693927938098,0.101,1636.1,1636.0,34.09451005]
[1693927938426,0.101,1636.1,1636.0,32.23551005]
[1693927938718,0.101,1636.1,1636.0,29.763578]
[1693927940330,0.101,1636.1,1636.0,31.622578]
[1693927940829,0.101,1636.1,1636.0,38.62951005]
[1693927941028,0.101,1636.1,1636.0,40.48851005]
[1693927941405,0.101,1636.1,1636.0,43.55552431]
[1693927942304,1.05996093,1636.3,1636.2,9.394]
[1693927942502,1.37961458,1636.4,1636.3,10.0077]
[1693927942701,1.37961458,1636.4,1636.3,23.67302]
[1693927943002,1.37961458,1636.4,1636.3,21.81402]
[1693927943206,1.37961458,1636.4,1636.3,21.33402]
[1693927943638,1.37961458,1636.4,1636.3,18.33402]
[1693927944807,0.101,1636.4,1636.3,20.10386693]
[1693927945035,0.101,1636.4,1636.3,22.44286693]
[1693927946334,0.101,1636.5,1636.3,42.24185324]
[1693927946645,0.101,1636.5,1636.4,9.874]
[1693927946934,0.101,1636.7,1636.5,8.253]
[1693927947137,0.101,1636.7,1636.6,15.62531426]
[1693927947324,0.101,1636.7,1636.6,36.58619426]
[1693927947525,0.101,1636.7,1636.6,24.49496]
[1693927947713,0.101,1636.7,1636.6,22.63596]
[1693927948224,0.101,1636.7,1636.6,21.33066]
[1693927948426,0.101,1636.7,1636.6,6.11022]
[1693927948611,3.16801426,1636.7,1636.1,0.47795587]
[1693927948937,3.06701426,1636.6,1636.4,6.11097]
[1693927949238,2.4104,1636.6,1636.4,6.11097]
[1693927949535,5.47741426,1636.6,1636.3,12.2225]
[1693927949741,0.54774143,1636.5,1636.3,6.11116]
[1693927950444,0.54774143,1636.5,1636.3,12.2225]
[1693927950644,0.54774143,1636.5,1636.3,18.33384]
[1693927950842,2.2514,1636.7,1636.4,1.859]
[1693927951043,2.2514,1636.7,1636.5,18.3318]
[1693927951565,2.2514,1636.7,1636.5,6.11044]
[1693927951743,2.2514,1636.7,1636.5,12.22104]
[1693927951921,2.2514,1636.7,1636.5,18.33164]
[1693927955040,2.2514,1636.7,1636.5,12.22104]
[1693927955455,2.2514,1636.7,1636.5,6.11044]
[1693927955948,2.2514,1636.7,1636.5,12.22104]
[1693927956150,2.2514,1636.7,1636.5,18.33164]
[1693927957326,2.2514,1636.7,1636.5,20.775869]
[1693927958923,2.2514,1636.7,1636.5,6.11044]
[1693927959128,2.2514,1636.7,1636.5,12.22104]
[1693927959747,2.2514,1636.7,1636.5,18.33164]
[1693927960362,0.101,1636.7,1636.6,1.859]
[1693927960558,0.101,1636.7,1636.6,20.66966]
[1693927960757,0.101,1636.7,1636.6,23.40896321]
[1693927961469,0.101,1636.7,1636.6,18.33066]
[1693927961673,0.101,1636.7,1636.6,6.11022]
[1693927962441,0.101,1636.7,1636.6,12.22044]
[1693927963166,0.101,1636.7,1636.6,6.11022]
[1693927963886,0.101,1636.7,1636.6,12.22044]
[1693927965512,0.101,1636.7,1636.6,18.33066]
[1693927969921,0.101,1636.7,1636.6,12.22044]
[1693927973248,0.101,1636.7,1636.6,18.33066]
[1693927975442,0.101,1636.7,1636.6,18.81066]
[1693927977743,0.101,1636.7,1636.6,30.882685]
[1693927978044,0.101,1636.7,1636.6,33.35461705]
[1693927980245,1.80314149,1636.7,1636.6,33.35461705]
[1693927980408,1.80314149,1636.7,1636.6,21.81066]
[1693927980608,1.80314149,1636.7,1636.6,21.33066]
[1693927980609,0.74110968,1636.7,1636.6,21.33066]
[1693927981053,3.1048938,1636.7,1636.6,18.33066]
[1693927981346,3.1048938,1636.7,1636.6,21.33066]
[1693927981715,2.46478412,1636.7,1636.6,21.33066]
[1693927982248,3.42494864,1636.7,1636.6,21.81066]
[1693927982652,2.46478412,1636.7,1636.6,21.81066]
[1693927982825,3.10481769,1636.7,1636.6,21.81066]
[1693927983026,2.46478412,1636.7,1636.6,26.647683]
[1693927984114,1.16306251,1636.7,1636.6,26.647683]
[1693927984350,0.101,1636.7,1636.6,23.18966]
[1693927985016,0.101,1636.7,1636.6,30.39281205]
[1693927985217,0.101,1636.7,1636.6,37.40051205]
[1693927987736,0.101,1636.8,1636.7,25.42248205]
[1693927988051,0.101,1636.8,1636.7,26.66855]
[1693927988552,0.101,1636.8,1636.7,36.12956426]
[1693927988753,0.101,1636.8,1636.7,36.74249631]
[1693927992339,0.64035536,1636.9,1636.8,7.00693205]
[1693927992538,0.64035536,1636.9,1636.8,33.74138631]
[1693927993062,1.70231836,1636.9,1636.8,33.74138631]
[1693927993228,1.90786786,1636.9,1636.8,33.74138631]
[1693927993428,1.70231836,1636.9,1636.8,33.74138631]
[1693927993654,1.2675125,1636.9,1636.8,33.74138631]
[1693927993858,2.32945003,1636.9,1636.8,33.74138631]
[1693927994036,1.06193753,1636.9,1636.8,33.74138631]
[1693927994241,0.64035536,1636.9,1636.8,33.74138631]
[1693927994760,1.7018884,1637.0,1636.8,33.74138631]
[1693927994956,0.74135536,1637.0,1636.9,28.2013]
[1693927995161,2.00818631,1637.0,1636.9,28.81423205]
[1693927997966,1.80298914,1637.0,1636.9,21.8073]
[1693927998462,3.06989275,1637.0,1636.9,21.8073]
[1693927998667,3.06989275,1637.0,1636.9,12.2182]
[1693927998832,3.06989275,1637.0,1636.9,21.3273]
[1693927999033,4.03042579,1637.0,1636.9,21.3273]
[1693927999232,2.96845537,1637.0,1636.9,21.3273]
[1693928000044,1.70155176,1637.0,1636.9,21.8073]
[1693928001162,1.70155176,1637.0,1636.9,24.784842]
[1693928002290,1.70155176,1637.0,1636.9,26.643842]
[1693928002970,1.70155176,1637.0,1636.9,26.107842]
[1693928004598,1.80298914,1637.0,1636.9,26.107842]
[1693928004804,1.80298914,1637.0,1636.9,26.72077405]
[1693928005003,0.74101872,1637.0,1636.9,26.72077405]
[1693928005707,0.74101872,1637.0,1636.9,33.11477405]
[1693928008710,0.74101872,1637.0,1636.9,26.72077405]
[1693928008872,0.74101872,1637.0,1636.9,23.1303]
[1693928009388,0.74101872,1637.0,1636.9,17.0212]
[1693928009606,1.80295497,1637.0,1636.9,17.0212]
[1693928009917,3.06945179,1637.0,1636.9,23.1303]
[1693928010212,1.80295497,1637.0,1636.9,16.5412]
[1693928010399,3.06945179,1637.0,1636.9,12.2182]
[1693928010598,2.42943307,1637.0,1636.9,12.2182]
[1693928010800,2.42943307,1637.0,1636.9,18.3273]
[1693928011391,2.42943307,1637.0,1636.9,12.2182]
[1693928011609,0.101,1637.0,1636.9,12.2182]
[1693928011820,0.101,1637.0,1636.9,18.3273]
[1693928012313,0.55582367,1637.0,1636.8,6.10929]
[1693928012711,0.55582367,1637.0,1636.8,12.21877]
[1693928014801,0.55582367,1637.0,1636.8,18.32825]
[1693928015116,0.101,1637.0,1636.8,18.32825]
[1693928015315,6.20979,1637.0,1636.7,6.10979]
[1693928015492,6.20979,1637.0,1636.6,6.10992]
[1693928015698,0.620979,1636.9,1636.7,12.21944]
[1693928016014,0.620979,1636.9,1636.7,6.10959]
[1693928016397,0.620979,1636.9,1636.7,12.21944]
[1693928016598,1.06213103,1636.8,1636.7,12.21944]
[1693928016800,2.32862785,1636.8,1636.7,12.21944]
[1693928017123,3.60947729,1636.8,1636.7,12.21944]
[1693928017417,3.60947729,1636.8,1636.6,6.10991]
[1693928017622,3.60947729,1636.8,1636.7,6.10985]
[1693928017823,4.95155251,1636.8,1636.7,6.10985]
[1693928019118,2.32862785,1636.8,1636.7,12.83263205]
[1693928019623,2.32862785,1636.8,1636.7,20.26548205]
[1693928019918,2.32862785,1636.8,1636.7,32.76933205]
[1693928020093,2.32862785,1636.8,1636.7,36.24933205]
[1693928021819,1.06213103,1636.8,1636.7,36.24933205]
[1693928022020,1.9072598,1636.9,1636.8,10.00693205]
[1693928022193,0.64076298,1636.9,1636.8,36.20538631]
[1693928022910,0.64076298,1636.9,1636.8,34.88238631]
[1693928023124,0.64076298,1636.9,1636.8,36.73338631]
[1693928026945,1.7020618,1637.1,1637.0,41.78865]
[1693928027122,1.7028038,1637.1,1637.0,48.94859631]
[1693928027310,0.74172152,1637.1,1637.0,48.94859631]
[1693928027511,1.93513619,1637.1,1637.0,48.94859631]
[1693928027719,1.06208228,1637.2,1637.0,48.94859631]
[1693928027941,0.101,1637.2,1637.1,31.87902631]
[1693928028941,0.96108228,1637.3,1637.1,33.73002631]
[1693928030338,0.101,1637.4,1637.1,34.34372631]
[1693928030512,0.101,1637.4,1637.3,30.82444]
[1693928030708,0.101,1637.4,1637.3,37.37145426]
[1693928031521,1.28144304,1637.5,1637.3,45.94299631]
[1693928031752,1.28144304,1637.5,1637.4,33.72666631]
[1693928031940,2.98349021,1637.6,1637.5,24.71461]
[1693928032145,2.98349021,1637.6,1637.5,33.11262426]
[1693928032351,1.60104717,1637.7,1637.5,35.57655631]
[1693928032537,2.90523834,1637.7,1637.6,33.65740205]
[1693928032846,2.90523834,1637.7,1637.6,30.65740205]
[1693928033053,1.30419117,1637.7,1637.6,33.65740205]
[1693928033253,1.30419117,1637.7,1637.6,36.72441631]